fUSD/lending_fUSD_20250807
["ID","MTS","AMOUNT","RATE_DAILY","PERIOD"]
[377801628,1754559043412,-153.920482,0.00019996,2]
[377801630,1754559043422,-151.0,0.00019996,2]
[377801632,1754559043431,-151.0,0.00019996,2]
[377801634,1754559043440,-151.0,0.00019996,2]
[377801636,1754559043451,-151.0,0.00019996,2]
[377801638,1754559043461,-150.0,0.00019996,2]
[377801640,1754559043470,-235.0,0.00019997,2]
[377801642,1754559043480,-1000.0,0.00019999,2]
[377801644,1754559043489,-171.13693606,0.0002,4]
[377801646,1754559043500,-92711.27003736,0.0002,14]
[377801648,1754559043511,-30459.36639828,0.0002,2]
[377801650,1754559043520,-160.11,0.0002,14]
[377801652,1754559043531,-3670.66218127,0.0002,20]
[377801654,1754559043540,-253.03156223,0.0002,2]
[377801656,1754559043550,-150.0,0.0002,2]
[377801658,1754559043559,-1849.67875534,0.0002,2]
[377801660,1754559043569,-150.0,0.0002,2]
[377801662,1754559043578,-548.26084717,0.0002,2]
[377801664,1754559043588,-305.0301111,0.0002,7]
[377801666,1754559043597,-150.0,0.0002,2]
[377801668,1754559043607,-7434.54314674,0.0002,2]
[377801670,1754559043617,-151.0,0.0002,2]
[377801672,1754559043627,-151.0,0.0002,2]
[377801674,1754559043636,-160.927966,0.0002,2]
[377801676,1754559043646,-151.0,0.0002,2]
[377801678,1754559043656,-150.25686961,0.0002,14]
[377801680,1754559043666,-212.619551,0.0002,2]
[377801682,1754559043675,-212.619551,0.0002,2]
[377801684,1754559043686,-165.7,0.0002,2]
[377801686,1754559043696,-153.083469,0.0002,2]
[377801688,1754559043706,-151.0,0.0002,2]
[377801690,1754559043716,-253.662966,0.0002,2]
[377801692,1754559043725,-200.0,0.0002,2]
[377801694,1754559043735,-154.95733511,0.00020001,2]
[377801696,1754559043744,-5199.43684445,0.00020008,2]
[377801698,1754559043756,-9096.85614152,0.0002001,2]
[377801700,1754559043766,-153.777731,0.0002001,2]
[377801702,1754559043775,-151.0,0.0002001,2]
[377801705,1754559043785,-500.0,0.0002001,2]
[377801707,1754559043795,-507.0,0.0002001,2]
[377801709,1754559043804,-658.0,0.0002001,2]
[377801711,1754559043814,-212.619551,0.0002001,2]
[377801712,1754559043823,-212.619551,0.0002001,2]
[377801715,1754559043833,-5000.0,0.00020015,2]
[377801717,1754559043845,-212.619551,0.00020015,2]
[377801719,1754559043855,-212.619551,0.00020015,2]
[377801721,1754559043865,-5888.0,0.0002002,2]
[377801723,1754559043874,-500.0,0.0002002,2]
[377801725,1754559043884,-2000.0,0.0002002,2]
[377801727,1754559043894,-500.0,0.0002002,2]
[377801729,1754559043904,-1000.0,0.0002002,4]
[377801731,1754559043913,-300.0,0.0002002,2]
[377801733,1754559043923,-250.0,0.0002002,2]
[377801735,1754559043933,-300.0,0.0002002,2]
[377801737,1754559043942,-2000.0,0.0002002,2]
[377801739,1754559043952,-2000.0,0.0002002,2]
[377801741,1754559043961,-500.0,0.0002002,2]
[377801743,1754559043971,-1000.0,0.0002002,4]
[377801745,1754559043981,-300.0,0.0002002,2]
[377801747,1754559043993,-2467.28,0.00020038,2]
[377801749,1754559044003,-2845.05,0.00020039,2]
[377801751,1754559044012,-5888.0,0.00020043,2]
[377801753,1754559044022,-4538.10272712,0.00020057,2]
[377801755,1754559044032,-153.65,0.00020072,2]
[377801757,1754559044042,-424.57,0.00020083,2]
[377801759,1754559044051,-25000.0,0.00020091,2]
[377801761,1754559044061,-1919.37,0.00020104,2]
[377801763,1754559044071,-5888.0,0.00020133,2]
[377801765,1754559044080,-2716.82636,0.0002015,2]
[377801767,1754559044090,-250.52,0.00020187,2]
[377801769,1754559044099,-867.03,0.000202,2]
[377801771,1754559044109,-5000.0,0.0002021,2]
[377801773,1754559044119,-212.619551,0.0002021,2]
[377801775,1754559044129,-212.619551,0.0002021,2]
[377801777,1754559044139,-5000.0,0.00020211,2]
[377801779,1754559044148,-5888.0,0.00020222,2]
[377801781,1754559044158,-235.0,0.00020226,2]
[377801783,1754559044167,-168.84,0.0002028,2]
[377801785,1754559044177,-150.0,0.000203,2]
[377801787,1754559044186,-361.56711525,0.0002031,2]
[377801789,1754559044195,-5888.0,0.00020313,2]
[377801791,1754559044205,-287.61899177,0.00020358,2]
[377801793,1754559044214,-5000.0,0.0002037,2]
[377801795,1754559044224,-25330.1103333,0.00020371,2]
[377801797,1754559044234,-25247.1296,0.00020371,2]
[377801800,1754559044243,-166.49,0.0002038,2]
[377801802,1754559044253,-5000.0,0.00020383,2]
[377801804,1754559044262,-5233.0,0.00020385,2]
[377801806,1754559044272,-5000.0,0.00020388,2]
[377801808,1754559044281,-5888.0,0.00020396,2]
[377801810,1754559044291,-2716.82636,0.000204,2]
[377801812,1754559044300,-424.57,0.000204,2]
[377801814,1754559044309,-308.038578,0.000204,2]
[377801816,1754559044319,-2784.54,0.00020437,2]
[377801818,1754559044328,-543.91,0.00020462,2]
[377801820,1754559044337,-263.41,0.00020468,2]
[377801822,1754559044346,-424.57,0.0002048,2]
[377801824,1754559044357,-424.57,0.0002049,2]
[377801825,1754559044366,-25247.1296,0.00020496,2]
[377801827,1754559044375,-21190.29157406,0.00020496,2]
[377801984,1754559045955,-622.15636844,0.00020496,2]
[377802290,1754559203445,233.42,0.00013699,2]
[377802352,1754559785304,155.52,0.00026492,120]
[377802353,1754559785675,155.52,0.000289,120]
[377802358,1754559969293,241.19,0.00015068,2]
[377802359,1754559969385,241.19,0.00016686,2]
[377802370,1754560158156,514.0,0.00017554,2]
[377802378,1754560232308,-241.19,0.00018303,2]
[377802379,1754560232318,-300.0,0.0001835,2]
[377802380,1754560232327,-1978.73,0.00018398,2]
[377802381,1754560232336,-1000.0,0.00018399,2]
[377802382,1754560232345,-250.0,0.00018399,2]
[377802383,1754560232355,-874.8,0.00018888,2]
[377802384,1754560232367,-874.8,0.00018898,2]
[377802385,1754560232378,-874.8,0.00018908,2]
[377802386,1754560232387,-726.27408935,0.00018918,2]
[377802387,1754560232400,-148.52591065,0.00018918,2]
[377802388,1754560232411,-1200.0,0.00018927,2]
[377802389,1754560232420,-874.8,0.00018928,2]
[377802390,1754560232429,-5631.42,0.00018928,2]
[377802391,1754560232438,-499.99,0.00018928,2]
[377802392,1754560232450,-9999.99,0.00018928,2]
[377802393,1754560232459,-150.99,0.00018928,2]
[377802394,1754560232469,-874.8,0.00018938,2]
[377802395,1754560232478,-874.8,0.00018948,2]
[377802396,1754560232486,-874.8,0.00018958,2]
[377802397,1754560232495,-874.8,0.00018968,2]
[377802398,1754560232505,-874.8,0.00018978,2]
[377802399,1754560232516,-874.8,0.00018988,2]
[377802400,1754560232526,-874.8,0.00018998,2]
[377802401,1754560232535,-874.8,0.00019008,2]
[377802402,1754560232545,-874.8,0.00019018,2]
[377802403,1754560232554,-874.8,0.00019027,2]
[377802404,1754560232563,-874.8,0.00019037,2]
[377802405,1754560232572,-874.8,0.00019047,2]
[377802406,1754560232581,-874.8,0.00019057,2]
[377802407,1754560232590,-874.8,0.00019067,2]
[377802408,1754560232600,-850.0,0.00019077,2]
[377802409,1754560232610,-874.8,0.00019077,2]
[377802410,1754560232620,-151.00000001,0.00019178,2]
[377802411,1754560232629,-196.71,0.00019178,2]
[377802412,1754560232638,-155.52,0.00019267,2]
[377802413,1754560232647,-175.0,0.00019285,7]
[377802414,1754560232656,-404.49,0.00019285,2]
[377802415,1754560232666,-251.23,0.00019303,2]
[377802416,1754560232675,-277.35679052,0.00019315,2]
[377802418,1754560232685,-169.08,0.00019322,2]
[377802419,1754560232696,-23900.0,0.00019327,2]
[377802420,1754560232706,-165.7,0.00019346,2]
[377802421,1754560232716,-265.7666135,0.00019539,2]
[377802422,1754560232727,-166.6,0.00019882,2]
[377802423,1754560232737,-200.0,0.00019883,2]
[377802424,1754560232747,-151.0,0.00019883,2]
[377802425,1754560232756,-151.0,0.00019883,2]
[377802426,1754560232765,-151.0,0.00019883,2]
[377802427,1754560232774,-151.0,0.00019883,2]
[377802428,1754560232783,-151.0,0.00019883,2]
[377802429,1754560232793,-160.0,0.00019883,2]
[377802430,1754560232802,-151.0,0.00019883,2]
[377802431,1754560232813,-151.0,0.00019883,2]
[377802432,1754560232824,-151.0,0.00019883,2]
[377802433,1754560232833,-151.0,0.00019883,2]
[377802434,1754560232843,-151.0,0.00019883,2]
[377802435,1754560232852,-151.0,0.00019883,2]
[377802436,1754560232862,-500.0,0.00019883,2]
[377802437,1754560232871,-151.0,0.00019883,2]
[377802438,1754560232880,-17998.3705,0.00019895,2]
[377802439,1754560232890,-1000.0,0.00019895,2]
[377802440,1754560232902,-609.016,0.000199,2]
[377802441,1754560232913,-2600.0,0.000199,7]
[377802442,1754560232924,-241.19,0.0001992,2]
[377802443,1754560232935,-875.595,0.00019931,2]
[377802444,1754560232944,-273.833,0.00019931,2]
[377802445,1754560232954,-9734.845,0.00019931,2]
[377802446,1754560232963,-4141.0,0.00019931,2]
[377802447,1754560232973,-771.1400575,0.0001998,2]
[377802448,1754560232984,-500.0,0.00019986,2]
[377802449,1754560232993,-500.0,0.00019986,2]
[377802450,1754560233003,-525.62162186,0.00019986,2]
[377802451,1754560233012,-157.37983292,0.00019986,2]
[377802452,1754560233022,-400.0,0.00019993,2]
[377802453,1754560233031,-400.0,0.00019993,2]
[377802454,1754560233040,-400.0,0.00019993,2]
[377802455,1754560233049,-400.0,0.00019993,2]
[377802456,1754560233058,-400.0,0.00019993,2]
[377802457,1754560233067,-400.0,0.00019993,2]
[377802458,1754560233076,-400.0,0.00019993,2]
[377802459,1754560233086,-400.0,0.00019993,2]
[377802460,1754560233095,-2448.24,0.00019993,2]
[377802461,1754560233105,-1462.16,0.00019993,2]
[377802462,1754560233114,-389.43936566,0.00019993,2]
[377802463,1754560233124,-206.17835432,0.00019993,2]
[377802464,1754560233133,-401.12347987,0.00019994,2]
[377802465,1754560233143,-784.69,0.00019994,2]
[377802466,1754560233153,-400.0,0.00019994,2]
[377802467,1754560233162,-400.0,0.00019994,2]
[377802468,1754560233172,-2991.17,0.00019994,2]
[377802469,1754560233181,-500.0,0.00019994,2]
[377802470,1754560233191,-400.0,0.00019994,2]
[377802471,1754560233201,-915.65,0.00019994,2]
[377802472,1754560233211,-543.76350398,0.00019994,2]
[377802473,1754560233221,-610.09,0.00019994,2]
[377802474,1754560233231,-465.6,0.00019994,2]
[377802475,1754560233240,-400.0,0.00019994,2]
[377802476,1754560233250,-400.0,0.00019994,2]
[377802477,1754560233260,-1559.19,0.00019994,2]
[377802478,1754560233270,-400.0,0.00019994,2]
[377802479,1754560233280,-740.32,0.00019994,2]
[377802480,1754560233290,-2234.81,0.00019994,2]
[377802481,1754560233299,-562.29,0.00019994,2]
[377802482,1754560233309,-400.0,0.00019994,2]
[377802483,1754560233319,-3385.0,0.00019994,2]
[377802484,1754560233328,-400.0,0.00019994,2]
[377802485,1754560233338,-400.0,0.00019994,2]
[377802486,1754560233347,-500.0,0.00019994,2]
[377802487,1754560233358,-400.0,0.00019994,2]
[377802488,1754560233368,-1700.25,0.00019994,2]
[377802489,1754560233377,-400.0,0.00019994,2]
[377802490,1754560233387,-401.26871827,0.00019994,2]
[377802491,1754560233396,-400.0,0.00019994,2]
[377802492,1754560233406,-666.07,0.00019994,2]
[377802493,1754560233417,-696.6,0.00019994,2]
[377802494,1754560233427,-1935.63,0.00019994,2]
[377802495,1754560233436,-2154.18,0.00019994,2]
[377802496,1754560233447,-400.0,0.00019994,2]
[377802497,1754560233456,-400.0,0.00019994,2]
[377802498,1754560233466,-400.0,0.00019994,2]
[377802499,1754560233475,-879.94,0.00019994,2]
[377802500,1754560233485,-1091.83,0.00019994,2]
[377802501,1754560233495,-400.0,0.00019994,2]
[377802502,1754560233505,-2339.52,0.00019994,2]
[377802503,1754560233514,-710.15,0.00019994,2]
[377802504,1754560233523,-400.0,0.00019994,2]
[377802505,1754560233534,-400.0,0.00019994,2]
[377802506,1754560233544,-426.62497489,0.00019994,2]
[377802507,1754560233554,-2239.56,0.00019994,2]
[377802508,1754560233563,-400.0,0.00019994,2]
[377802509,1754560233572,-400.0,0.00019994,2]
[377802510,1754560233581,-1906.35,0.00019994,2]
[377802511,1754560233591,-1941.2,0.00019994,2]
[377802512,1754560233600,-400.0,0.00019994,2]
[377802513,1754560233610,-400.0,0.00019994,2]
[377802514,1754560233619,-1363.08,0.00019994,2]
[377802515,1754560233628,-400.0,0.00019994,2]
[377802516,1754560233637,-2300.66,0.00019994,2]
[377802517,1754560233646,-400.0,0.00019994,2]
[377802518,1754560233655,-2255.93,0.00019994,2]
[377802519,1754560233665,-400.0,0.00019994,2]
[377802520,1754560233675,-400.0,0.00019994,7]
[377802521,1754560233684,-633.19,0.00019994,2]
[377802522,1754560233695,-982.09,0.00019994,2]
[377802523,1754560233705,-400.0,0.00019994,2]
[377802524,1754560233720,-424.5,0.00019994,2]
[377802525,1754560233738,-400.0,0.00019994,2]
[377802526,1754560233752,-1606.69,0.00019994,2]
[377802527,1754560233767,-419.72798128,0.00019994,2]
[377802528,1754560233783,-642.55,0.00019994,2]
[377802529,1754560233800,-400.0,0.00019994,2]
[377802530,1754560233815,-1468.17,0.00019994,2]
[377802531,1754560233828,-400.0,0.00019994,2]
[377802532,1754560233843,-726.67,0.00019994,2]
[377802533,1754560233859,-1415.17,0.00019994,2]
[377802534,1754560233875,-400.0,0.00019994,2]
[377802535,1754560233890,-400.0,0.00019994,2]
[377802536,1754560233907,-2464.24,0.00019994,2]
[377802537,1754560233924,-400.0,0.00019994,2]
[377802538,1754560233939,-2475.07,0.00019994,2]
[377802539,1754560233954,-400.0,0.00019994,2]
[377802540,1754560233970,-400.73514058,0.00019994,2]
[377802541,1754560233983,-400.0,0.00019994,2]
[377802542,1754560233996,-2039.78,0.00019994,2]
[377802543,1754560234009,-2039.23,0.00019994,2]
[377802544,1754560234026,-400.0,0.00019994,2]
[377802545,1754560234038,-936.05,0.00019994,2]
[377802546,1754560234051,-679.11,0.00019994,2]
[377802547,1754560234068,-400.0,0.00019994,2]
[377802548,1754560234079,-2766.85,0.00019994,2]
[377802549,1754560234092,-1891.24,0.00019994,2]
[377802550,1754560234105,-2702.92,0.00019994,2]
[377802551,1754560234118,-2387.93,0.00019994,2]
[377802552,1754560234143,-400.0,0.00019994,2]
[377802553,1754560234156,-400.0,0.00019994,2]
[377802554,1754560234170,-400.0,0.00019994,2]
[377802555,1754560234185,-1314.19,0.00019994,2]
[377802556,1754560234199,-400.0,0.00019994,2]
[377802557,1754560234213,-2171.51,0.00019994,2]
[377802558,1754560234227,-1193.86,0.00019994,2]
[377802559,1754560234241,-400.0,0.00019994,2]
[377802560,1754560234256,-960.7,0.00019994,2]
[377802561,1754560234270,-400.0,0.00019994,2]
[377802562,1754560234284,-400.0,0.00019994,2]
[377802563,1754560234298,-2744.01,0.00019994,2]
[377802564,1754560234312,-400.0,0.00019994,2]
[377802565,1754560234326,-400.0,0.00019994,2]
[377802566,1754560234339,-1211.01,0.00019994,2]
[377802567,1754560234354,-400.0,0.00019994,2]
[377802568,1754560234367,-400.0,0.00019994,2]
[377802569,1754560234383,-1974.86,0.00019994,2]
[377802570,1754560234397,-400.0,0.00019994,2]
[377802571,1754560234411,-402.66,0.00019994,2]
[377802572,1754560234425,-400.0,0.00019994,2]
[377802573,1754560234439,-368.94129906,0.00019994,2]
[377802574,1754560234452,-579.41,0.00019994,2]
[377802575,1754560234466,-400.0,0.00019994,2]
[377802576,1754560234480,-4613.8,0.00019994,2]
[377802577,1754560234494,-400.0,0.00019994,2]
[377802578,1754560234507,-400.0,0.00019994,2]
[377802579,1754560234520,-1169.58,0.00019994,2]
[377802580,1754560234534,-1937.94,0.00019994,2]
[377802581,1754560234547,-400.0,0.00019994,2]
[377802582,1754560234561,-400.0,0.00019994,2]
[377802583,1754560234576,-400.0,0.00019994,2]
[377802584,1754560234594,-400.0,0.00019994,2]
[377802585,1754560234613,-402.08787755,0.00019994,2]
[377802586,1754560234627,-700.2,0.00019994,2]
[377802587,1754560234640,-400.0,0.00019994,2]
[377802588,1754560234654,-400.0,0.00019994,2]
[377802589,1754560234669,-3117.43,0.00019994,2]
[377802590,1754560234683,-1807.41,0.00019994,2]
[377802591,1754560234697,-400.0,0.00019994,2]
[377802592,1754560234710,-400.0,0.00019994,2]
[377802593,1754560234724,-1180.59,0.00019994,2]
[377802594,1754560234737,-400.0,0.00019994,2]
[377802595,1754560234751,-1514.49,0.00019994,2]
[377802596,1754560234766,-2114.15,0.00019994,2]
[377802597,1754560234778,-3033.81,0.00019994,2]
[377802598,1754560234792,-469.07,0.00019994,2]
[377802599,1754560234806,-2439.91,0.00019994,2]
[377802600,1754560234819,-400.0,0.00019994,2]
[377802601,1754560234833,-400.0,0.00019994,2]
[377802602,1754560234847,-154.37411494,0.00019994,2]
[377802603,1754560234861,-2049.12,0.00019994,2]
[377802604,1754560234874,-583.66,0.00019994,2]
[377802605,1754560234887,-1553.9,0.00019994,2]
[377802606,1754560234901,-863.15,0.00019994,2]
[377802607,1754560234915,-400.0,0.00019994,2]
[377802608,1754560234928,-735.66,0.00019994,2]
[377802609,1754560234942,-400.0,0.00019994,2]
[377802610,1754560234955,-1225.05,0.00019994,2]
[377802611,1754560234969,-590.09,0.00019994,2]
[377802612,1754560234982,-400.0,0.00019994,2]
[377802613,1754560234996,-400.6320608,0.00019994,2]
[377802614,1754560235009,-1843.11,0.00019994,2]
[377802615,1754560235022,-400.0,0.00019994,2]
[377802616,1754560235036,-400.0,0.00019994,2]
[377802617,1754560235049,-1725.33,0.00019994,2]
[377802618,1754560235062,-400.0,0.00019994,2]
[377802619,1754560235075,-611.01,0.00019994,2]
[377802620,1754560235088,-2021.66,0.00019994,2]
[377802621,1754560235101,-400.0,0.00019994,2]
[377802622,1754560235114,-400.0,0.00019994,2]
[377802623,1754560235128,-2604.42,0.00019994,2]
[377802624,1754560235141,-400.0,0.00019994,2]
[377802625,1754560235154,-400.0,0.00019994,2]
[377802626,1754560235167,-400.0,0.00019994,2]
[377802627,1754560235181,-400.0,0.00019994,2]
[377802628,1754560235194,-400.0,0.00019994,2]
[377802629,1754560235207,-400.0,0.00019994,2]
[377802630,1754560235221,-400.0,0.00019994,2]
[377802631,1754560235235,-2344.84,0.00019994,2]
[377802632,1754560235249,-400.0,0.00019994,2]
[377802633,1754560235261,-2857.61,0.00019994,2]
[377802634,1754560235275,-400.0,0.00019994,2]
[377802635,1754560235288,-400.0,0.00019994,2]
[377802636,1754560235301,-400.0,0.00019994,2]
[377802637,1754560235314,-1270.5,0.00019994,2]
[377802638,1754560235327,-400.0,0.00019994,2]
[377802639,1754560235340,-447.33,0.00019994,2]
[377802640,1754560235353,-400.0,0.00019994,2]
[377802641,1754560235366,-402.88,0.00019994,2]
[377802642,1754560235381,-400.0,0.00019994,2]
[377802643,1754560235394,-400.0,0.00019994,2]
[377802644,1754560235408,-2498.2,0.00019994,2]
[377802645,1754560235424,-648.18,0.00019994,2]
[377802646,1754560235438,-719.03,0.00019994,2]
[377802647,1754560235451,-540.92,0.00019994,2]
[377802648,1754560235465,-2070.79,0.00019994,2]
[377802649,1754560235479,-1206.54,0.00019994,2]
[377802650,1754560235492,-400.0,0.00019994,2]
[377802651,1754560235505,-400.0,0.00019994,2]
[377802652,1754560235518,-1279.01,0.00019994,2]
[377802653,1754560235531,-400.0,0.00019994,2]
[377802654,1754560235543,-401.81016312,0.00019994,2]
[377802655,1754560235556,-400.0,0.00019994,2]
[377802656,1754560235569,-483.24,0.00019994,2]
[377802657,1754560235581,-335.94592723,0.00019994,2]
[377802658,1754560235593,-400.0,0.00019994,2]
[377802659,1754560235605,-1724.08,0.00019994,2]
[377802660,1754560235618,-454.95,0.00019994,2]
[377802661,1754560235630,-2271.51,0.00019994,2]
[377802662,1754560235642,-461.51927522,0.00019994,2]
[377802663,1754560235655,-2358.1,0.00019994,2]
[377802664,1754560235667,-1986.57,0.00019994,2]
[377802665,1754560235679,-335.42368174,0.00019994,2]
[377802666,1754560235691,-400.0,0.00019994,2]
[377802667,1754560235704,-400.0,0.00019994,2]
[377802668,1754560235716,-400.0,0.00019994,2]
[377802669,1754560235729,-1459.74,0.00019994,2]
[377802670,1754560235741,-400.87723033,0.00019994,2]
[377802671,1754560235754,-378.38720172,0.00019994,2]
[377802672,1754560235766,-1280.67,0.00019994,2]
[377802673,1754560235778,-401.96,0.00019994,2]
[377802674,1754560235791,-400.0,0.00019994,2]
[377802675,1754560235803,-2746.41,0.00019994,2]
[377802676,1754560235816,-3694.61,0.00019994,2]
[377802677,1754560235829,-946.51,0.00019994,2]
[377802678,1754560235842,-400.0,0.00019994,2]
[377802679,1754560235856,-400.0,0.00019994,2]
[377802680,1754560235869,-400.52204934,0.00019994,2]
[377802681,1754560235882,-400.0,0.00019994,2]
[377802682,1754560235895,-1935.81,0.00019994,2]
[377802683,1754560235908,-3020.09,0.00019994,2]
[377802684,1754560235922,-400.0,0.00019994,2]
[377802685,1754560235935,-703.02,0.00019994,2]
[377802686,1754560235948,-911.1,0.00019994,2]
[377802687,1754560235961,-400.0,0.00019994,2]
[377802688,1754560235975,-3375.22,0.00019994,2]
[377802689,1754560235987,-2022.54,0.00019994,2]
[377802690,1754560236000,-400.85660311,0.00019995,2]
[377802691,1754560236013,-400.0,0.00019995,2]
[377802692,1754560236025,-400.0,0.00019995,2]
[377802693,1754560236038,-2630.28,0.00019995,2]
[377802694,1754560236051,-3194.45,0.00019995,2]
[377802695,1754560236064,-400.0,0.00019995,2]
[377802696,1754560236076,-683.01,0.00019995,2]
[377802697,1754560236090,-400.0,0.00019995,2]
[377802698,1754560236104,-2362.08,0.00019995,2]
[377802699,1754560236117,-400.0,0.00019995,2]
[377802700,1754560236129,-400.0,0.00019995,2]
[377802701,1754560236141,-400.0,0.00019995,2]
[377802702,1754560236153,-1969.1,0.00019995,2]
[377802703,1754560236166,-2209.32,0.00019995,2]
[377802704,1754560236179,-1892.22,0.00019995,2]
[377802705,1754560236194,-861.31,0.00019995,2]
[377802706,1754560236205,-400.0,0.00019995,2]
[377802707,1754560236218,-400.0,0.00019995,2]
[377802708,1754560236230,-400.0,0.00019995,2]
[377802709,1754560236242,-1628.28,0.00019995,2]
[377802710,1754560236254,-400.0,0.00019995,2]
[377802711,1754560236266,-400.0,0.00019995,2]
[377802712,1754560236278,-5392.93,0.00019995,2]
[377802713,1754560236291,-2785.31,0.00019995,2]
[377802714,1754560236303,-1596.95,0.00019995,2]
[377802715,1754560236316,-2583.88,0.00019995,2]
[377802716,1754560236328,-2302.61,0.00019995,2]
[377802717,1754560236340,-400.0,0.00019995,2]
[377802718,1754560236351,-2469.83,0.00019995,2]
[377802719,1754560236363,-345.16333661,0.00019995,2]
[377802720,1754560236378,-1118.15,0.00019995,2]
[377802721,1754560236390,-2523.55,0.00019995,2]
[377802722,1754560236403,-400.0,0.00019995,2]
[377802723,1754560236417,-2741.47,0.00019995,2]
[377802724,1754560236429,-400.0,0.00019995,2]
[377802725,1754560236441,-2850.06,0.00019995,2]
[377802726,1754560236455,-400.0,0.00019995,2]
[377802727,1754560236468,-896.51,0.00019995,2]
[377802728,1754560236480,-991.47,0.00019995,2]
[377802729,1754560236492,-1839.03,0.00019995,2]
[377802730,1754560236504,-400.0,0.00019995,2]
[377802731,1754560236516,-400.0,0.00019995,2]
[377802732,1754560236528,-3619.36,0.00019995,2]
[377802733,1754560236540,-1731.82,0.00019995,2]
[377802734,1754560236552,-1993.03,0.00019995,2]
[377802735,1754560236565,-3655.25,0.00019995,2]
[377802736,1754560236577,-2218.2,0.00019995,2]
[377802737,1754560236588,-400.0,0.00019995,2]
[377802738,1754560236601,-1510.5,0.00019995,2]
[377802739,1754560236612,-7676.24619266,0.00019995,2]
[377802740,1754560236624,-1773.07,0.00019995,2]
[377802741,1754560236637,-400.0,0.00019995,2]
[377802742,1754560236649,-532.47,0.00019995,2]
[377802743,1754560236662,-2180.87,0.00019995,2]
[377802744,1754560236674,-400.0,0.00019995,2]
[377802745,1754560236687,-2647.57,0.00019995,2]
[377802746,1754560236699,-400.0,0.00019995,2]
[377802747,1754560236711,-2495.54,0.00019995,2]
[377802748,1754560236724,-938.68,0.00019995,2]
[377802749,1754560236736,-1182.76,0.00019995,2]
[377802750,1754560236749,-1860.06,0.00019995,2]
[377802751,1754560236761,-2300.44,0.00019995,2]
[377802752,1754560236772,-216.65659575,0.00019995,2]
[377802753,1754560236783,-2652.05,0.00019995,2]
[377802754,1754560236793,-1064.94,0.00019995,2]
[377802755,1754560236802,-2842.03,0.00019995,2]
[377802756,1754560236811,-3489.25,0.00019995,2]
[377802757,1754560236822,-1792.39,0.00019995,2]
[377802758,1754560236831,-1439.67,0.00019995,2]
[377802759,1754560236841,-3963.37,0.00019995,2]
[377802760,1754560236850,-400.0,0.00019995,2]
[377802761,1754560236860,-2917.31,0.00019995,2]
[377802762,1754560236869,-400.0,0.00019995,2]
[377802763,1754560237446,-2439.75,0.00019995,2]
[377802764,1754560237491,-400.0,0.00019995,2]
[377802765,1754560237520,-400.0,0.00019995,2]
[377802766,1754560237545,-2495.89,0.00019995,2]
[377802767,1754560237559,-2975.4,0.00019995,2]
[377802768,1754560237568,-400.0,0.00019995,2]
[377802769,1754560237578,-3519.32,0.00019995,2]
[377802770,1754560237587,-2833.09,0.00019995,2]
[377802771,1754560237597,-2961.0,0.00019995,2]